bitfinex-derivatives/quotes_ETHF0:USTF0_20250524
["timestamp","ask_amount","ask_price","bid_price","bid_amount"]
[1748119072541,20.02698599,2555.9,2555.8,2.79136889]
[1748119072841,0.07549626,2555.9,2555.8,2.79136889]
[1748119073046,20.73372973,2556.0,2555.9,0.78227]
[1748119073247,20.73372973,2556.0,2555.9,2.09457]
[1748119073540,20.73372973,2556.0,2555.9,1.3123]
[1748119074347,20.73372973,2556.0,2555.9,2.09457]
[1748119074546,20.73372973,2556.0,2555.9,1.3123]
[1748119075847,3.12672973,2556.0,2555.9,1.3123]
[1748119076751,2.34448973,2556.0,2555.9,2.09457]
[1748119077343,2.34448973,2556.1,2556.0,0.78224]
[1748119078449,0.78219,2556.2,2556.1,0.7822]
[1748119078752,0.78222,2556.1,2556.0,0.78221]
[1748119078950,2.07902,2556.1,2556.0,0.78221]
[1748119079652,1.2968,2556.1,2556.0,0.78221]
[1748119082247,19.80562889,2556.3,2556.2,0.78217]
[1748119083651,0.7822,2556.2,2556.1,0.78218]
[1748119083841,2.1403,2556.2,2556.1,0.78218]
[1748119089255,1.3581,2556.2,2556.1,0.78218]
[1748119090256,2.14027,2556.2,2556.1,0.78218]
[1748119090457,2.14027,2556.2,2556.1,2.18568]
[1748119094159,0.78227,2555.9,2555.8,0.78814889]
[1748119095559,0.78227,2555.9,2555.8,0.00586889]
[1748119095957,0.78227,2555.9,2555.8,0.78816889]
[1748119096157,2.07847,2555.9,2555.8,0.78816889]
[1748119098770,2.07847,2555.9,2555.8,0.00586889]
[1748119099273,4.42295973,2555.9,2555.8,0.00586889]
[1748119099972,2.07847,2555.9,2555.8,0.00586889]
[1748119100173,2.07847,2555.9,2555.8,0.78816889]
[1748119100563,2.15396626,2555.9,2555.8,0.78816889]
[1748119102273,2.15396626,2555.9,2555.8,0.00586889]
[1748119102572,2.07847,2555.9,2555.8,0.00586889]
[1748119103575,2.15396626,2555.9,2555.8,0.00586889]
[1748119105771,2.07847,2555.9,2555.8,0.00586889]
[1748119106677,2.15396626,2555.9,2555.8,0.00586889]
[1748119107480,2.15396626,2555.9,2555.8,0.78816889]
[1748119108277,2.15396626,2555.9,2555.8,0.00586889]
[1748119108580,0.07549626,2555.9,2555.8,0.78816889]
[1748119108877,0.07549626,2555.9,2555.8,2.15456889]
[1748119114086,0.78223,2556.1,2556.0,0.78224]
[1748119114784,0.78223,2556.1,2556.0,2.16274]
[1748119115584,0.78223,2556.1,2556.0,3.44364]
[1748119119285,3.76538973,2556.2,2556.1,0.78221]
[1748119119485,3.76538973,2556.2,2556.1,2.10071]
[1748119120185,4.54755973,2556.2,2556.1,2.10071]
[1748119120386,3.76538973,2556.2,2556.1,2.10071]
[1748119121181,4.54755973,2556.2,2556.1,2.10071]
[1748119122286,3.76538973,2556.2,2556.1,2.10071]
[1748119123894,4.54755973,2556.2,2556.1,2.10071]
[1748119124091,3.76538973,2556.2,2556.1,2.10071]
[1748119124388,1.4209,2556.2,2556.1,2.10071]
[1748119126580,0.00586889,2556.3,2556.2,0.78217]
[1748119126779,0.00586889,2556.3,2556.2,5.40477]
[1748119126992,1.85035862,2556.4,2556.3,0.78214]
[1748119127193,1.35235862,2556.4,2556.3,2.19694]
[1748119127394,1.35235862,2556.4,2556.3,2.85174]
[1748119128289,1.3034,2556.6,2556.5,0.78208]
[1748119128984,1.43381,2556.8,2556.4,2.0841]
[1748119129194,2.81771,2556.8,2556.7,0.78202]
[1748119131996,0.78202,2556.7,2556.6,1.44753]
[1748119132191,1.3007,2556.7,2556.6,1.44753]
[1748119134196,17.604,2557.0,2556.6,1.44753]
[1748119134197,0.702,2557.0,2556.9,0.78196]
[1748119134397,1.3007,2557.1,2557.0,0.78193]
[1748119134590,1.3007,2557.1,2557.0,1.46323]
[1748119138190,1.3007,2557.1,2557.0,2.79843]
[1748119141105,2.0826,2557.1,2557.0,2.79843]
[1748119141401,1.3069988,2557.1,2557.0,2.79843]
[1748119144602,4.5147988,2557.1,2556.7,0.78201]
[1748119144807,0.78205,2556.7,2556.6,0.78204]
[1748119145107,4.66566,2557.0,2556.5,3.2078]
[1748119145308,0.78205,2556.6,2556.5,3.2078]
[1748119145495,0.78205,2556.6,2556.5,3.98988]
[1748119145806,2.19041,2556.8,2556.7,0.78202]
[1748119148013,1.4084,2556.8,2556.7,0.78202]
[1748119148706,2.19039,2556.8,2556.7,0.78202]
[1748119154018,1.4084,2556.8,2556.5,5.2084]
[1748119154313,0.78208,2556.5,2556.4,1.46329]
[1748119154510,0.78208,2556.6,2556.5,0.78208]
[1748119154706,2.83608,2556.6,2556.5,0.78208]
[1748119155107,0.78208,2556.5,2556.4,0.6812]
[1748119155307,0.78211,2556.4,2556.3,0.78212]
[1748119155715,1.4119,2556.5,2556.2,15.65016]
[1748119155716,0.78214,2556.3,2556.2,15.65016]
[1748119155909,2.19404,2556.3,2556.2,15.65016]
[1748119156611,1.4119,2556.3,2556.2,15.65016]
[1748119157017,2.19404,2556.3,2556.2,15.65016]
[1748119159323,1.4119,2556.3,2556.2,15.65016]
[1748119159524,2.19404,2556.3,2556.2,15.65016]
[1748119159712,1.4119,2556.3,2556.2,15.65016]
[1748119160621,0.78225,2556.0,2555.9,0.78226]
[1748119160823,0.78227,2555.9,2555.8,0.00586889]
[1748119161027,0.78227,2555.9,2555.8,0.78816889]
[1748119161322,0.78225,2556.0,2555.8,0.78816889]
[1748119161514,0.78227,2555.9,2555.8,0.00586889]
[1748119161714,2.06757,2555.9,2555.8,0.00586889]
[1748119163321,2.06757,2555.9,2555.8,0.78816889]
[1748119163722,1.2853,2555.9,2555.8,0.78816889]
[1748119165112,0.71,2556.2,2556.1,0.7822]
[1748119165315,17.67749626,2556.3,2556.2,0.78217]
[1748119165722,0.07549626,2556.3,2556.2,0.78217]
[1748119165920,17.67749626,2556.3,2556.2,0.78217]
[1748119166716,19.07429626,2556.3,2556.2,0.78217]
[1748119167322,19.85643626,2556.3,2556.2,0.78217]
[1748119174028,19.07429626,2556.3,2555.8,3.21366889]
[1748119174227,0.78225,2556.0,2555.9,0.78226]
[1748119174435,0.78227,2555.9,2555.8,3.99593889]
[1748119174628,2.07447,2555.9,2555.8,3.99593889]
[1748119174833,2.07447,2555.9,2555.8,0.78813889]
[1748119175136,1.2922,2555.9,2555.8,0.78813889]
[1748119175327,1.2922,2555.9,2555.8,2.19323889]
[1748119175633,0.6529,2556.2,2555.8,1.41096889]
[1748119175833,0.78221,2556.1,2556.0,0.78221]
[1748119177836,0.78221,2556.1,2556.0,1.46571]
[1748119178242,0.78221,2556.1,2556.0,0.6835]
[1748119178442,2.06961,2556.1,2556.0,0.6835]
[1748119181646,0.78224,2556.0,2555.9,2.18734]
[1748119181845,2.17144,2556.0,2555.9,0.78224]
[1748119182646,0.78227,2555.9,2555.8,2.09576889]
[1748119182843,0.78227,2555.9,2555.8,0.00586889]
[1748119182844,2.83227,2555.9,2555.8,0.00586889]
[1748119191051,2.90776626,2555.9,2555.8,0.00586889]
[1748119198759,5.24347309,2555.9,2555.8,0.00586889]
[1748119199058,5.16797683,2555.9,2555.8,0.00586889]
[1748119199955,5.24347309,2555.9,2555.8,0.00586889]
[1748119207864,22.84947309,2555.9,2555.8,0.00586889]
[1748119208063,5.24347309,2555.9,2555.8,1.37506889]
[1748119211069,5.16797683,2555.9,2555.8,1.37506889]
[1748119212070,5.24347309,2555.9,2555.8,1.37506889]
[1748119212670,2.90776626,2555.9,2555.8,0.00586889]
[1748119215970,20.51476626,2555.9,2555.8,1.29486889]
[1748119216171,20.43927,2555.9,2555.8,1.29486889]
[1748119218873,20.43927,2555.9,2555.8,0.00586889]
[1748119219372,20.51476626,2555.9,2555.8,0.00586889]
[1748119223178,2.90776626,2555.9,2555.8,0.00586889]
[1748119223380,20.43927,2555.9,2555.8,0.00586889]
[1748119223977,2.83227,2555.9,2555.8,0.00586889]
[1748119224177,23.55986199,2555.9,2555.8,0.00586889]
[1748119225179,20.43927,2555.9,2555.8,0.00586889]
[1748119227679,2.83227,2555.9,2555.8,0.00586889]
[1748119227881,20.43927,2555.9,2555.8,0.00586889]
[1748119230679,23.64707,2555.9,2555.8,0.00586889]
[1748119239196,20.43927,2555.9,2555.8,0.00586889]
[1748119239396,23.64707,2555.9,2555.8,0.00586889]
[1748119244405,26.76766199,2555.9,2555.8,0.00586889]
[1748119245307,23.64707,2555.9,2555.8,0.00586889]
[1748119247310,6.04007,2555.9,2555.8,0.00586889]
[1748119247504,3.12059199,2556.0,2555.8,0.78813889]
[1748119247706,3.12059199,2556.0,2555.9,3.47096]
[1748119247913,3.90282199,2556.0,2555.9,3.47096]
[1748119248507,3.12761259,2556.0,2555.9,3.47096]
[1748119249706,3.20310885,2556.0,2555.9,3.47096]
[1748119249913,3.20310885,2556.0,2555.9,2.6887]
[1748119251314,0.85772626,2556.0,2555.9,2.6887]
[1748119255815,0.85772626,2556.0,2555.9,0.6669]
[1748119255816,4.06552626,2556.0,2555.9,0.6669]
[1748119256009,6.13102626,2556.0,2555.9,0.6669]
[1748119256309,0.78226,2555.9,2555.8,0.00586889]
[1748119256507,2.18546,2555.9,2555.8,0.00586889]
[1748119259515,5.39326,2555.9,2555.8,0.00586889]
[1748119267121,23.00126,2555.9,2555.8,0.00586889]
[1748119269217,19.79346,2555.9,2555.8,0.00586889]
[1748119269417,23.00126,2555.9,2555.8,0.00586889]
[1748119271219,5.39326,2555.9,2555.8,0.00586889]
[1748119271522,23.00126,2555.9,2555.8,0.68076889]
[1748119273724,19.79346,2555.9,2555.8,0.68076889]
[1748119274325,2.18546,2555.9,2555.8,0.68076889]
[1748119274624,19.79346,2555.9,2555.8,0.68076889]
[1748119276223,19.86895626,2555.9,2555.8,0.68076889]
[1748119276825,23.07675626,2555.9,2555.8,0.68076889]
[1748119277625,18.46575626,2555.9,2555.8,0.68076889]
[1748119278026,0.85775626,2555.9,2555.8,1.96366889]
[1748119278226,0.78226,2555.9,2555.8,1.96366889]
[1748119278424,0.78225,2556.0,2555.9,0.78226]
[1748119278623,0.78225,2556.0,2555.8,1.46303889]
[1748119278928,2.34315586,2555.9,2555.8,1.46303889]
[1748119279132,2.41865212,2555.9,2555.8,1.46303889]
[1748119279927,0.07549626,2555.9,2555.8,1.46303889]
[1748119280828,0.85775626,2555.9,2555.8,1.46303889]
[1748119281629,0.07549626,2555.9,2555.8,1.46303889]
[1748119281930,0.85775626,2555.9,2555.8,1.46303889]
[1748119283128,0.07549626,2555.9,2555.8,1.46303889]
[1748119284433,0.85775626,2555.9,2555.8,1.46303889]
[1748119288632,0.07549626,2555.9,2555.8,1.46303889]
[1748119289535,0.85775626,2555.9,2555.8,1.46303889]
[1748119293935,0.85775626,2555.9,2555.8,3.41353889]
[1748119295539,0.07549626,2555.9,2555.8,3.41353889]
[1748119296038,0.85775626,2555.9,2555.8,3.41353889]
[1748119296842,0.07549626,2555.9,2555.8,3.41353889]
[1748119297038,0.07549626,2555.9,2555.8,8.41353889]
[1748119299241,3.12532586,2556.2,2556.1,0.7822]
[1748119299428,2.34315586,2556.2,2556.1,0.7822]
[1748119300632,2.34315586,2556.2,2556.1,1.4229]
[1748119300842,0.78217,2556.2,2556.1,1.4229]
[1748119303741,2.16326,2556.3,2556.2,0.78217]
[1748119304039,2.16326,2556.3,2556.2,1.45447]
[1748119304242,2.16326,2556.3,2556.2,0.6723]
[1748119304541,2.16326,2556.3,2556.2,1.45447]
[1748119306248,1.3811,2556.3,2556.2,1.45447]
[1748119306738,1.3811,2556.3,2556.2,2.75017]
[1748119308242,2.16324,2556.3,2556.2,2.75017]
[1748119308642,2.16324,2556.3,2556.2,1.968]
[1748119309150,4.50639586,2556.3,2556.2,1.968]
[1748119309450,3.72425586,2556.3,2556.2,2.75017]
[1748119310249,4.50639586,2556.3,2556.2,2.75017]
[1748119310651,4.58189212,2556.3,2556.2,2.75017]
[1748119316156,4.58675272,2556.3,2556.2,2.75017]
[1748119318459,4.58675272,2556.3,2556.2,1.968]
[1748119318957,2.24359686,2556.3,2556.2,1.968]
[1748119319563,2.24359686,2556.3,2556.2,2.75017]
[1748119320061,4.58675272,2556.3,2556.2,2.75017]
[1748119320463,3.80461272,2556.3,2556.2,2.75017]
[1748119322859,4.58675272,2556.3,2556.2,2.75017]
[1748119323451,2.42351272,2556.3,2556.2,2.75017]
[1748119323651,1.92351272,2556.3,2556.2,7.75017]
[1748119323950,3.2078,2556.6,2556.5,0.78208]
[1748119324563,3.2078,2556.6,2556.5,3.41422972]
[1748119324759,3.98985,2556.6,2556.5,3.41422972]
[1748119325557,0.78205,2556.6,2556.5,3.41422972]
[1748119325863,2.20194,2556.7,2556.6,0.78205]
[1748119326062,2.20194,2556.7,2556.6,2.01229972]
[1748119327464,2.20194,2556.7,2556.6,1.23024972]
[1748119327763,2.20194,2556.7,2556.6,2.01229972]
[1748119328263,2.20194,2556.7,2556.6,2.01271881]
[1748119328867,1.4199,2556.7,2556.6,2.01271881]
[1748119329160,1.4199,2556.7,2556.6,2.01256502]
[1748119330261,1.4199,2556.7,2556.6,3.31256926]
[1748119332158,2.20192,2556.7,2556.6,3.31260832]
[1748119333971,2.20192,2556.7,2556.6,3.31253484]
[1748119335264,1.4199,2556.7,2556.6,3.31253484]
[1748119335764,1.4199,2556.7,2556.6,2.74785]
[1748119335970,1.4199,2556.7,2556.6,3.31241973]
[1748119339767,1.4199,2556.7,2556.6,3.31231645]
[1748119341474,1.4199,2556.7,2556.6,2.74785]
[1748119341672,1.4199,2556.7,2556.6,3.31256289]
[1748119342976,2.20192,2556.7,2556.6,3.31256289]
[1748119343175,1.4199,2556.7,2556.6,3.31256289]
[1748119345474,1.4199,2556.7,2556.6,3.31272125]
[1748119347376,1.4199,2556.7,2556.6,3.31280615]
[1748119351177,1.4199,2556.7,2556.6,3.31311092]
[1748119351574,2.34019507,2556.9,2556.8,0.78199]
[1748119351881,2.34019507,2556.9,2556.8,1.34725092]
[1748119352277,3.75399507,2556.9,2556.8,1.34725092]
[1748119352883,3.75399507,2556.9,2556.8,0.78199]
[1748119353082,3.75399507,2556.9,2556.8,1.34756133]
[1748119353478,1.4138,2556.9,2556.8,1.34756133]
[1748119354781,1.4138,2556.9,2556.8,0.78199]
[1748119354982,1.4138,2556.9,2556.8,1.34785614]
[1748119355184,1.4138,2556.9,2556.8,2.00605614]
[1748119356587,2.19576,2556.9,2556.8,2.00605614]
[1748119360483,2.19576,2556.9,2556.8,2.00624741]
[1748119361595,2.19576,2556.9,2556.8,0.56605741]
[1748119362487,0.78202,2556.7,2556.6,0.6658]
[1748119362688,0.78202,2556.7,2556.6,1.22692711]
[1748119362889,2.0414,2556.8,2556.6,1.22692711]
[1748119363191,1.61282,2556.7,2556.6,0.6658]
[1748119363387,1.61282,2556.7,2556.6,2.00900529]
[1748119363586,3.9582971,2556.7,2556.6,2.00900529]
[1748119364295,3.9582971,2556.7,2556.6,2.00396376]
[1748119364791,3.1762771,2556.7,2556.6,2.00396376]
[1748119366192,3.1762771,2556.7,2556.6,2.00397486]
[1748119367694,3.1762771,2556.7,2556.6,4.01497486]
[1748119368102,3.1762771,2556.7,2556.6,4.01494247]
[1748119369389,3.9582971,2556.7,2556.6,4.01494247]
[1748119369997,3.9582971,2556.7,2556.6,4.01492332]
[1748119370789,7.1660971,2556.7,2556.6,0.55607332]
[1748119371796,0.78209,2556.5,2556.3,1.50897334]
[1748119371991,0.78209,2556.5,2556.4,0.55609764]
[1748119372896,3.1275671,2556.5,2556.4,1.33820764]
[1748119373593,0.78209,2556.5,2556.4,1.33820764]
[1748119374295,0.78209,2556.5,2556.4,0.55609764]
[1748119374500,18.38309,2556.5,2556.4,0.55609764]
[1748119374697,19.04059,2556.5,2556.4,0.55609764]
[1748119375605,18.2585,2556.5,2556.4,0.78211]
[1748119375903,17.601,2556.5,2556.4,1.33786444]
[1748119376293,18.38308,2556.5,2556.4,1.33786444]
[1748119376602,0.78206,2556.6,2556.4,1.33786444]
[1748119376796,0.78205,2556.6,2556.5,0.55559405]
[1748119376996,18.38405,2556.6,2556.5,0.55559405]
[1748119377302,20.72674739,2556.6,2556.5,0.55559405]
[1748119377497,20.72674739,2556.6,2556.5,0.55552698]
[1748119377700,2.34269739,2556.6,2556.5,1.33760698]
[1748119377900,2.34269739,2556.6,2556.5,2.68130698]
[1748119378199,20.72673739,2556.7,2556.5,2.68130698]
[1748119378401,20.72673739,2556.7,2556.6,0.55552698]
[1748119378603,20.72673739,2556.7,2556.6,0.55542718]
[1748119378907,20.72673739,2556.7,2556.5,2.12578]
[1748119379208,0.78205,2556.6,2556.5,2.12578]
[1748119379502,0.78205,2556.6,2556.5,2.68119674]
[1748119380902,18.38404,2556.7,2556.5,2.68119674]
[1748119381204,18.38404,2556.7,2556.6,1.33746674]
[1748119381408,18.38404,2556.7,2556.6,4.01836674]
[1748119381707,18.38404,2556.7,2556.6,3.23631674]
[1748119382607,18.38404,2556.7,2556.6,3.23633415]
[1748119383405,18.38404,2556.7,2556.6,1.24443415]
[1748119383801,19.78524,2556.7,2556.6,1.24443415]
[1748119384207,22.12793739,2556.7,2556.6,0.689]
[1748119385408,22.12793739,2556.7,2556.6,2.7315]
[1748119393408,22.12793739,2556.7,2556.6,1.3801]
[1748119393713,0.7821,2556.5,2556.4,0.7821]
[1748119397916,0.78211,2556.4,2556.3,1.4033]
[1748119398120,0.7822,2556.1,2555.8,16.61715276]
[1748119398418,0.78223,2556.0,2555.9,3.42444334]
[1748119398617,2.75243,2556.0,2555.9,3.42444334]
[1748119399014,2.75243,2556.0,2555.9,1.42684334]
[1748119399822,2.75243,2556.0,2555.9,0.7]
[1748119400217,2.75243,2556.0,2555.9,1.48226]
[1748119400520,2.75243,2556.0,2555.9,0.7]
[1748119401215,2.75243,2556.0,2555.9,1.48226]
[1748119403522,2.75243,2556.0,2555.9,0.7]
[1748119403716,2.75243,2556.0,2555.8,1.99356889]
[1748119403717,0.78226,2555.9,2555.8,0.00586889]
[1748119403922,2.08596,2555.9,2555.8,0.00586889]
[1748119404229,7.08596,2555.9,2555.8,0.00586889]
[1748119406234,21.95096,2555.9,2555.8,0.00586889]
[1748119406423,16.95096,2555.9,2555.8,0.00586889]
[1748119407236,19.69096,2555.9,2555.8,0.00586889]
[1748119408134,22.02848268,2555.9,2555.8,0.00586889]
[1748119408636,4.42348268,2555.9,2555.8,0.00586889]
[1748119408834,22.02848268,2555.9,2555.8,0.00586889]
[1748119411535,0.78242,2555.4,2555.3,1.44394]
[1748119411836,0.78242,2555.4,2555.3,2.77584]
[1748119412033,0.78242,2555.4,2555.3,1.9934]
[1748119412233,0.78242,2555.4,2555.3,2.77585]
[1748119412529,0.78242,2555.4,2555.3,1.9934]
[1748119412732,2.08792,2555.4,2555.3,0.6615]
[1748119413129,0.78248,2555.2,2555.1,1.39016889]
[1748119413526,0.78248,2555.2,2555.1,0.00586889]
[1748119413838,2.76088,2555.2,2555.1,0.00586889]
[1748119414025,0.7826,2554.8,2554.7,3.2078]
[1748119414233,0.78269,2554.5,2554.4,0.72684334]
[1748119414431,21.59649,2554.5,2554.4,0.72684334]
[1748119415732,0.78275,2554.3,2554.2,0.00586889]
[1748119416933,2.07045,2554.3,2554.2,0.00586889]
[1748119419438,17.612,2554.3,2554.2,0.00586889]
[1748119419940,17.612,2554.3,2554.2,1.34556889]
[1748119420643,18.39475,2554.3,2554.2,1.34556889]
[1748119424043,19.76385,2554.3,2554.2,1.34556889]
[1748119425550,19.76385,2554.3,2554.2,0.00586889]
[1748119433850,3.2078,2554.4,2554.3,0.78275]
[1748119434051,3.2078,2554.4,2554.3,1.43075]
[1748119434456,3.2078,2554.4,2554.3,2.83805]
[1748119435260,3.99052,2554.4,2554.3,2.83805]
[1748119437162,0.78272,2554.4,2554.3,2.0553]
[1748119437759,0.78272,2554.4,2554.3,2.83805]
[1748119438863,0.78272,2554.4,2554.3,2.0553]
[1748119439260,1.4186,2554.6,2554.3,2.0553]
[1748119439457,19.0356,2554.6,2554.4,1.3322]
[1748119439659,0.78269,2554.5,2554.4,1.3322]
[1748119443156,0.78269,2554.5,2554.4,2.11492]
[1748119443362,20.73720268,2554.6,2554.5,0.78269]
[1748119443764,3.12020268,2554.6,2554.5,0.78269]
[1748119443965,20.73720268,2554.6,2554.5,0.78269]
[1748119444168,0.78269,2554.5,2554.4,1.3322]
[1748119445271,2.06449,2554.5,2554.4,1.3322]
[1748119445773,4.40201268,2554.5,2554.4,1.3322]
[1748119449068,0.78272,2554.4,2554.3,0.648]
[1748119449272,0.78275,2554.3,2554.2,2.03726889]
[1748119450567,0.78275,2554.3,2554.2,0.68666889]
[1748119450871,3.12027268,2554.3,2554.2,0.68666889]
[1748119452673,3.12027268,2554.3,2554.2,0.00586889]
[1748119453372,4.52927268,2554.3,2554.2,0.00586889]
[1748119455370,2.19175,2554.3,2554.2,0.00586889]
[1748119456381,5.39955,2554.3,2554.2,0.00586889]
[1748119458778,8.52014199,2554.3,2554.2,0.00586889]
[1748119461878,5.39955,2554.3,2554.2,0.00586889]
[1748119465588,0.78285,2554.0,2553.9,0.6581]
[1748119466288,0.78303,2553.4,2553.3,18.86385]
[1748119466586,0.78302,2553.5,2553.3,18.86385]
[1748119466786,0.78302,2553.5,2553.4,1.3023]
[1748119467488,0.78302,2553.5,2553.4,2.08533]
[1748119467986,0.78302,2553.5,2553.4,1.3023]
[1748119468289,0.78884889,2553.6,2553.5,0.783]
[1748119468889,0.78884889,2553.6,2553.4,2.08531]
[1748119469294,0.78884889,2553.6,2553.5,1.3674]
[1748119470289,0.00586889,2553.6,2553.5,2.1504]
[1748119470794,0.78883889,2553.6,2553.5,2.1504]
[1748119474083,0.78883889,2553.6,2553.5,1.3674]
[1748119474595,0.78883889,2553.6,2553.5,2.1504]
[1748119476296,0.78883889,2553.6,2553.5,1.3674]
[1748119478298,0.7839783,2553.6,2553.5,2.0663]
[1748119482596,0.7839783,2553.6,2553.5,2.8493]
[1748119482797,0.7839783,2553.6,2553.5,2.0663]
[1748119483403,0.7839783,2553.6,2553.5,2.8493]
[1748119484691,0.7839783,2553.6,2553.5,2.0663]
[1748119485702,0.7839783,2553.6,2553.5,2.8493]
[1748119487804,0.7839783,2553.6,2553.5,2.0663]
[1748119488804,2.8400783,2553.6,2553.5,2.0663]
[1748119489000,5.18026278,2553.6,2553.5,2.0663]
[1748119491006,5.18026278,2553.6,2553.5,2.6317577]
[1748119491303,5.18026278,2553.6,2553.5,2.0663]
[1748119491503,5.18026278,2553.6,2553.5,2.63179398]
[1748119492410,4.53546278,2553.6,2553.5,3.41479398]
[1748119492611,2.34119278,2553.6,2553.5,3.41479398]
[1748119493108,0.7839783,2553.6,2553.5,3.41479398]
[1748119493310,0.7839783,2553.6,2553.5,3.41041607]
[1748119494302,0.0010083,2553.6,2553.5,3.41041607]
[1748119494507,0.7839783,2553.6,2553.5,3.41041607]
[1748119497614,0.7839783,2553.6,2553.5,2.62741607]
[1748119497813,4.45626278,2553.6,2553.5,2.62741607]
[1748119498013,4.45626278,2553.6,2553.5,1.26001607]
[1748119498914,4.45626278,2553.6,2553.5,0.56111607]
[1748119501017,0.783,2553.5,2553.4,2.14081]
[1748119501210,2.7782,2553.5,2553.4,2.70214452]
[1748119501811,5.11838448,2553.5,2553.4,2.70214452]
[1748119504019,3.62658448,2553.5,2553.4,2.70214452]
[1748119504218,2.34018448,2553.5,2553.4,2.70214452]
[1748119504719,2.34018448,2553.5,2553.4,2.14081]
[1748119505019,2.34018448,2553.5,2553.4,2.70215966]
[1748119505319,3.12318448,2553.5,2553.4,2.14081]
[1748119505519,2.34018448,2553.5,2553.4,2.697255]
[1748119505719,20.74619278,2553.6,2553.5,0.783]
[1748119505920,20.74619278,2553.6,2553.5,2.1032]
[1748119506415,20.74619278,2553.6,2553.5,1.3202]
[1748119506619,22.16099278,2553.6,2553.5,0.55627651]
[1748119507325,0.783,2553.5,2553.4,0.78301]
[1748119507623,2.1827,2553.5,2553.4,1.33929031]
[1748119509430,2.1827,2553.5,2553.4,0.78301]
[1748119510227,2.1827,2553.5,2553.4,1.33930149]
[1748119510421,2.1827,2553.5,2553.4,0.78301]
[1748119510629,2.1827,2553.5,2553.4,2.18341]
[1748119510826,2.1827,2553.5,2553.4,2.73969015]
[1748119512229,2.1827,2553.5,2553.4,2.73968296]
[1748119514132,2.1827,2553.5,2553.4,2.73968129]
[1748119514431,20.74617278,2553.6,2553.5,0.783]
[1748119514625,20.74617278,2553.6,2553.5,2.65207129]
[1748119516025,20.74617278,2553.6,2553.5,2.0958]
[1748119516220,2.34119278,2553.6,2553.5,5.85986854]
[1748119516527,19.96319278,2553.6,2553.5,5.85986854]
[1748119517332,20.74616278,2553.6,2553.5,5.85986854]
[1748119517536,18.4059783,2553.6,2553.5,5.85986854]
[1748119517922,18.4059783,2553.6,2553.5,5.3036]
[1748119518133,18.4059783,2553.6,2553.5,5.85983183]
[1748119518421,18.4059783,2553.6,2553.5,2.65203183]
[1748119519127,18.4059783,2553.6,2553.5,1.86903183]
[1748119519325,33.2799783,2553.6,2553.5,0.55623183]
[1748119519522,36.0414783,2553.6,2553.5,0.55623183]
[1748119520335,41.0414783,2553.6,2553.5,0.55623183]
[1748119520538,0.78309,2553.2,2553.1,0.00586889]
[1748119520930,0.78306,2553.3,2553.1,0.00586889]
[1748119521127,2.0052,2553.3,2553.2,0.78309]
[1748119521332,5.12579199,2553.3,2553.2,2.06689]
[1748119521533,3.12059199,2553.3,2553.2,2.06689]
[1748119521734,20.74259199,2553.3,2553.2,2.06689]
[1748119522832,17.622,2553.3,2553.2,2.06689]
[1748119523035,3.2078,2553.4,2553.3,0.78306]
[1748119523335,3.2078,2553.4,2553.3,2.07966]
[1748119524138,2.3447085,2553.5,2553.4,0.78303]
[1748119524438,2.3447085,2553.5,2553.4,2.07963]
[1748119524633,2.3447085,2553.5,2553.4,2.72433]
[1748119524832,3.1277085,2553.5,2553.4,2.72433]
[1748119525032,0.783,2553.5,2553.4,2.72433]
[1748119526137,3.1277085,2553.5,2553.4,2.72433]
[1748119527739,2.3447085,2553.5,2553.4,2.72433]
[1748119528639,3.1277085,2553.5,2553.4,2.72433]
[1748119529140,0.783,2553.5,2553.4,2.72433]
[1748119531631,2.1207,2553.5,2553.4,2.72433]
[1748119532640,2.1207,2553.5,2553.4,3.27514562]
[1748119533149,2.1207,2553.5,2553.4,3.27514054]
[1748119533544,2.1207,2553.5,2553.4,0.55081054]
[1748119533734,0.78306,2553.4,2553.3,0.78305]
[1748119533936,1.3377,2553.5,2553.4,0.78303]
[1748119534545,20.7507068,2553.6,2553.5,0.783]
[1748119534738,3.12059199,2554.0,2553.9,0.78288]
[1748119535341,3.12059199,2554.0,2553.9,2.17208]
[1748119536143,3.12059199,2554.0,2553.9,2.81958]
[1748119536347,0.00586889,2554.2,2554.1,0.78281]
[1748119536539,1.34536889,2554.2,2554.1,0.78281]
[1748119536735,1.34536889,2554.2,2554.1,1.43171]
[1748119542048,0.00586889,2554.2,2554.1,1.43171]
[1748119542254,3.2078,2554.7,2554.1,3.8567]
[1748119542554,2.14147,2554.6,2554.5,0.78266]
[1748119544957,1.3588,2554.6,2554.5,0.78266]
[1748119550168,2.14146,2554.6,2554.5,0.78266]
[1748119550364,1.3588,2554.6,2554.5,0.78266]
[1748119552572,2.14146,2554.6,2554.5,0.78266]
[1748119554763,1.3588,2554.6,2554.5,0.78266]
[1748119555667,3.2078,2554.7,2554.6,0.78266]
[1748119555870,4.5197,2554.7,2554.6,0.78266]
[1748119556375,1.3119,2554.7,2554.6,0.78266]
[1748119557276,2.09453,2554.7,2554.6,0.78266]
[1748119557875,0.78266,2554.6,2554.5,2.13097]
[1748119558075,2.09456,2554.6,2554.5,2.13097]
[1748119559079,1.3119,2554.6,2554.5,2.13097]
[1748119559274,0.00586889,2554.8,2554.7,0.78263]
[1748119559881,0.00586889,2554.8,2554.7,2.15823]
[1748119564780,0.00586889,2554.8,2554.7,22.07223]
[1748119565387,0.00586889,2554.8,2554.7,17.07223]
[1748119569788,0.00586889,2554.8,2554.7,20.28003]
[1748119571084,0.00586889,2554.8,2554.7,17.07223]
[1748119571389,0.00586889,2554.8,2554.7,20.28003]
[1748119572490,0.00586889,2554.8,2554.7,5.36603]
[1748119572684,0.67726889,2554.8,2554.7,2.15823]
[1748119572891,0.78266,2554.7,2554.6,0.78265]
[1748119573095,2.09156,2554.7,2554.6,0.78265]
[1748119573482,2.09156,2554.7,2554.5,0.663]
[1748119573483,9.5167,2554.7,2554.4,1.51357889]
[1748119573685,0.78269,2554.5,2554.4,1.51358889]
[1748119574392,2.09158,2554.6,2554.4,1.51358889]
[1748119574795,1.378,2554.5,2554.4,1.51358889]
[1748119575194,2.16069,2554.5,2554.4,1.51358889]